Workbook

Sheet Credits
A1: Spreadsheet for the evaluation of the economic analysis of cement plants with CO2 capture. | N1: Version 1.1 - 26/06/2018
A2: Authors: | B2: Name | C2: email
A3: POLIMI | B3: Edoardo De Lena | C3: edoardo.delena@polimi.it
B4: Maurizio Spinelli | C4: maurizio.spinelli@polimi.it
B5: Matteo Romano | C5: matteo.romano@polimi.it
A6: SINTEF | B6: Mari Voldsund | C6: mari.voldsund@sintef.no
B7: Stefania Osk Gardarsdottir | C7: stefania.gardarsdottir@sintef.no
B8: Simon Roussanaly | C8: simon.roussanaly@sintef.no
A15: Acknowledgement: This project has received funding from the European Union's Horizon 2020 research and innovation Programme under grant agreement no 641185 (CEMCAP).

Sheet Instructions
A1: Instructions:
A2: General note: Green cells in "Utilities & Consumables" and "Economic and CO2 emission Data" must be used to insert the input data. Light green cells represent CEMCAP reference values and should not be changed
A3: to keep a consistent methodology with the CEMCAP economic framework.
A4: When the Cemcap economic framework default values are changed, the colour of the cells becomes orange.
A5: It is possible to restore the Cemcap default values by clicking the button below.
A8: Step-by-step instructions for economic calculation:
A9: 1) Insert inputs in the "Utilities & Consumables" sheet. Additional items associated to the capture plant may be introduced in addition to the default ones (fuel, electricity, steam, etc…).
A10: Electricity and steam prices introduced in this sheet must refer to the cost without carbon tax. When a calculation with carbon tax is performed, the cost associated to indirect emissions from power
A11: and steam generation are is added to the cement cost.
A12: 2) Insert inputs in the "Economic and CO2 emission data"
A13: 3) Press the button "Calculate the Cost of Clinker" and read the cost breakdown and the cost of CO2 avoided. Details of the economic calculations may be checked in the "Economic balance" sheet.
A14: 4) A sensitivity analysis of the cost of cement vs. selected parameters may be performed in the "Sensitivity" sheet.
A16: NOTE: When a calculation with carbon tax > 0 is performed, cost of avoided CO2 is computed independently of the carbon tax value.

Sheet Utilities & Consumables
A1: Input data on utilities and consumables
A2: Utilities and Consumables | B2: Unit price | D2: Amount | E2: Plant without CO2 capture | F2: Plant with CO2 capture | G2: Climate impact | H2: Climate impact | L2: Plant without CO2 capture | M2: Plant with CO2 capture
A3: Raw Meal | B3: €/tRawMeal | C3: 3.012 | D3: tRawMeal/tclk | E3: 1.66 | F3: 1.66 | G3: kgCO2/tRawMeal | H3: 0 | J3: Total Cost | K3: €/tclk | L3: =SUMPRODUCT(C3:C29,E3:E29) -> 22.71831 | M3: =SUMPRODUCT(C3:C29,F3:F29) -> 40.13092
A4: Fuel | B4: €/GJLHV | C4: 3 | D4: GJLHV/tclk | E4: 3.135 | F4: 10 | G4: Do not introduce specific CO2 emissions from fuel | J4: Total indirect CO2 emissions | K4: kgCO2/tclk | L4: =SUMPRODUCT(E3:E29,H3:H29) -> 34.5578 | M4: =SUMPRODUCT(F3:F29,H3:H29) -> 2.62
A5: Electricity | B5: €/MWhe | C5: 58.1 | D5: MWhe/tclk | E5: 0.1319 | F5: 0.01 | G5: kgCO2/MWhe | H5: 262
A6: Steam | B6: €/MWhth | C6: 25.3 | D6: MWhth/tclk | E6: 0 | F6: 0 | G6: kgCO2/MWhth | H6: 224
A7: Cooling water | B7: €/m3 | C7: 0.39 | D7: m3/tclk | E7: 0 | F7: 10 | G7: kgCO2/m3 | H7: 0
A8: Ammonia | B8: €/tNH3 | C8: 0.13 | D8: kgNH3/tclk | E8: 5 | F8: 5 | G8: kgCO2/kgNH3 | H8: 0
A9: Others items may be introduced below this line | J9: Data for electricity and steam generation
D10: =IF(B10="","",CONCATENATE(MID(B10,FIND("/",B10)+1,LEN(B10)-FIND("/",B10)),"/tclk")) ->  | G10: =IF(B10="","",CONCATENATE("kgCO2/",MID(B10,FIND("€",B10)+2,LEN(B10)-FIND("/",B10)))) ->  | J10: Reference power generation efficiency and emissions
D11: =IF(B11="","",CONCATENATE(MID(B11,FIND("/",B11)+1,LEN(B11)-FIND("/",B11)),"/tclk")) ->  | G11: =IF(B11="","",CONCATENATE("kgCO2/",MID(B11,FIND("€",B11)+2,LEN(B11)-FIND("/",B11)))) ->  | J11: Reference scenario | K11: href,e | L11: Emissions
K12: - | L12: kgCO2/MWhe
K13: 0.459 | L13: 262
K14: 0.442 | L14: 770
K15: 0.35 | L15: 973
K16: 0.35 | L16: 90
K17: 0.525 | L17: 385
J19: Price of electricity with Carbon Tax | K19: =C5+Carbon_Tax/1000*'Utilities & Consumables'!H5 -> 60.196 | L19: €/MWhe
J20: Reference steam generation cost and emissions
J21: Steam source | K21: Cost | L21: Emissions
K22: €/MWhth | L22: kgCO2/MWhth
K23: 8.5 | L23: 0
K24: 7.7 | L24: 101
K25: 10.3 | L25: 136
K26: 13 | L26: 170
K27: 25.3 | L27: 224
J29: Price of steam with Carbon Tax | K29: =C6+Carbon_Tax/1000*'Utilities & Consumables'!H6 -> 27.092 | L29: €/MWhth

Sheet Economic and CO2 Emission Data
B2: Financial data | F2: Plant data | I2: Plant without CO2 capture | J2: Plant with CO2 capture | L2: Cost breakdown | M2: Plant without CO2 capture | Q2: Plant with CO2 capture
B4: Capacity_factor | C4: =1000000/3000/365 -> 0.9132420091 | F4: Clinker Production | G4: Clinker production | H4: tclk/day | I4: 2895.5232 | J4: 2895 | M4: Clinker | O4: Cement | Q4: Clinker | S4: Cement
B5: Depreciation_time | C5: 0 | D5: yrs | G5: Cement/clinker ratio | H5: tcem/tclk | I5: 1.36 | J5: 1.36 | L5: Raw meal | M5: =INDEX('Utilities & Consumables'!$A$3:$F$29,MATCH('Economic and CO2 Emission Data'!$L5,'Utilities & Consumables'!$A$3:$A$29,0),3)*INDEX('Utilities & Consumables'!$A$3:$F$29,MATCH('Economic and CO2 Emission Data'!$L5,'Utilities & Consumables'!$A$3:$A$29,0),5) -> 4.99992 | N5: €/tclk | O5: =M5/I$5 -> 3.676411765 | P5: €/tcem | Q5: =INDEX('Utilities & Consumables'!$A$3:$F$29,MATCH('Economic and CO2 Emission Data'!$L5,'Utilities & Consumables'!$A$3:$A$29,0),3)*INDEX('Utilities & Consumables'!$A$3:$F$29,MATCH('Economic and CO2 Emission Data'!$L5,'Utilities & Consumables'!$A$3:$A$29,0),6) -> 4.99992 | R5: €/tclk | S5: =Q5/J$5 -> 3.676411765 | T5: €/tcem
B6: Tax_rate | C6: 0 | G6: Cement production | H6: tcem/day | I6: =I4*I5 -> 3937.911552 | J6: =J4*J5 -> 3937.2 | L6: Fuel | M6: =INDEX('Utilities & Consumables'!$A$3:$F$29,MATCH('Economic and CO2 Emission Data'!$L6,'Utilities & Consumables'!$A$3:$A$29,0),3)*INDEX('Utilities & Consumables'!$A$3:$F$29,MATCH('Economic and CO2 Emission Data'!$L6,'Utilities & Consumables'!$A$3:$A$29,0),5) -> 9.405 | N6: €/tclk | O6: =M6/I$5 -> 6.915441176 | P6: €/tcem | Q6: =INDEX('Utilities & Consumables'!$A$3:$F$29,MATCH('Economic and CO2 Emission Data'!$L6,'Utilities & Consumables'!$A$3:$A$29,0),3)*INDEX('Utilities & Consumables'!$A$3:$F$29,MATCH('Economic and CO2 Emission Data'!$L6,'Utilities & Consumables'!$A$3:$A$29,0),6) -> 30 | R6: €/tclk | S6: =Q6/J$5 -> 22.05882353 | T6: €/tcem
B7: Operational_life | C7: 25 | D7: yrs | F7: Emissions of CO2 | G7: CO2 emissions (direct at stack) | H7: kgCO2/s | I7: 28.3385928 | J7: 1 | L7: Electricity | M7: =INDEX('Utilities & Consumables'!$A$3:$F$29,MATCH('Economic and CO2 Emission Data'!$L7,'Utilities & Consumables'!$A$3:$A$29,0),3)*INDEX('Utilities & Consumables'!$A$3:$F$29,MATCH('Economic and CO2 Emission Data'!$L7,'Utilities & Consumables'!$A$3:$A$29,0),5) -> 7.66339 | N7: €/tclk | O7: 5.634845588 | P7: €/tcem | Q7: =INDEX('Utilities & Consumables'!$A$3:$F$29,MATCH('Economic and CO2 Emission Data'!$L7,'Utilities & Consumables'!$A$3:$A$29,0),3)*INDEX('Utilities & Consumables'!$A$3:$F$29,MATCH('Economic and CO2 Emission Data'!$L7,'Utilities & Consumables'!$A$3:$A$29,0),6) -> 0.581 | R7: €/tclk | S7: 0.4272058824 | T7: €/tcem
B8: Construction_time | C8: 3 | D8: yrs | G8: CO2 emissions (direct at stack) | H8: kgCO2/tclk | I8: =I7/(I4/3600/24) -> 845.6 | J8: =J7/(J4/3600/24) -> 29.84455959 | L8: Steam | M8: =INDEX('Utilities & Consumables'!$A$3:$F$29,MATCH('Economic and CO2 Emission Data'!$L8,'Utilities & Consumables'!$A$3:$A$29,0),3)*INDEX('Utilities & Consumables'!$A$3:$F$29,MATCH('Economic and CO2 Emission Data'!$L8,'Utilities & Consumables'!$A$3:$A$29,0),5) -> 0 | N8: €/tclk | O8: 0 | P8: €/tcem | Q8: =INDEX('Utilities & Consumables'!$A$3:$F$29,MATCH('Economic and CO2 Emission Data'!$L8,'Utilities & Consumables'!$A$3:$A$29,0),3)*INDEX('Utilities & Consumables'!$A$3:$F$29,MATCH('Economic and CO2 Emission Data'!$L8,'Utilities & Consumables'!$A$3:$A$29,0),6) -> 0 | R8: €/tclk | S8: 0 | T8: €/tcem
B9: Percentage_of_TPC_depreciated | C9: 1 | G9: CO2 emissions (indirect from electricity) | H9: kgCO2/s | I9: =I10*I4/24/3600 -> 1.158135551 | J9: =J10*J4/24/3600 -> 0.08778819444 | L9: Carbon tax (direct emissions) | M9: =I37 -> 6.7648 | N9: €/tclk | O9: 4.974117647 | P9: €/tcem | Q9: =J37 -> 0.2387564767 | R9: €/tclk | S9: 0.1755562329 | T9: €/tcem
B10: Inflation_rate | C10: 0 | G10: CO2 emissions (indirect from electricity) | H10: kgCO2/tclk | I10: ='Utilities & Consumables'!E5*'Utilities & Consumables'!H5 -> 34.5578 | J10: ='Utilities & Consumables'!F5*'Utilities & Consumables'!H5 -> 2.62 | L10: Carbon tax (emissions from power gen.) | M10: =I38 -> 0.2764624 | N10: €/tclk | O10: 0.2032811765 | P10: €/tcem | Q10: =J38 -> 0.02096 | R10: €/tclk | S10: 0.01541176471 | T10: €/tcem
B11: Construction_inflat. | C11: 0 | G11: CO2 emissions (indirect from steam) | H11: kgCO2/s | I11: =I12*I6/24/3600 -> 0 | J11: =J12*J6/24/3600 -> 0 | L11: Carbon tax (emissions from steam gen.) | M11: =I39 -> 0 | N11: €/tclk | O11: 0 | P11: €/tcem | Q11: =J39 -> 0 | R11: €/tclk | S11: 0 | T11: €/tcem
B12: Percentage_of_Debt_Capital | C12: 0.5 | G12: CO2 emissions (indirect from steam) | H12: kgCO2/tclk | I12: ='Utilities & Consumables'!E6*'Utilities & Consumables'!H6 -> 0 | J12: ='Utilities & Consumables'!F6*'Utilities & Consumables'!H6 -> 0 | L12: Cooling water | M12: =INDEX('Utilities & Consumables'!$A$3:$F$29,MATCH('Economic and CO2 Emission Data'!$L12,'Utilities & Consumables'!$A$3:$A$29,0),3)*INDEX('Utilities & Consumables'!$A$3:$F$29,MATCH('Economic and CO2 Emission Data'!$L12,'Utilities & Consumables'!$A$3:$A$29,0),5) -> 0 | N12: €/tclk | O12: =M12/I$5 -> 0 | P12: €/tcem | Q12: =INDEX('Utilities & Consumables'!$A$3:$F$29,MATCH('Economic and CO2 Emission Data'!$L12,'Utilities & Consumables'!$A$3:$A$29,0),3)*INDEX('Utilities & Consumables'!$A$3:$F$29,MATCH('Economic and CO2 Emission Data'!$L12,'Utilities & Consumables'!$A$3:$A$29,0),6) -> 3.9 | R12: €/tclk | S12: =Q12/J$5 -> 2.867647059 | T12: €/tcem
B13: Percentage_of_Equity_capital | C13: =1-Percentage_of_Debt_Capital -> 0.5 | G13: CO2 emissions (indirect from others sources) | H13: kgCO2/s | I13: =I14*I8/24/3600 -> 0 | J13: =J14*J8/24/3600 -> 0 | L13: Other variable costs | M13: =(I40+Other_variable_OeM_base)-SUM(M12,M5:M8) -> 1.738 | N13: €/tclk | O13: 1.277941176 | P13: €/tcem | Q13: =(J40+Other_variable_OeM_capt)-SUM(Q12,Q5:Q8) -> 1.738 | R13: €/tclk | S13: 1.277941176 | T13: €/tcem
B14: Interest_on_debt | C14: 0.08 | G14: CO2 emissions (indirect from others sources) | H14: kgCO2/tclk | I14: =SUMPRODUCT('Utilities & Consumables'!E3,'Utilities & Consumables'!H3)+SUMPRODUCT('Utilities & Consumables'!E7:E8,'Utilities & Consumables'!H7:H8)+SUMPRODUCT('Utilities & Consumables'!E10:E29,'Utilities & Consumables'!H10:H29) -> 0 | J14: =SUMPRODUCT('Utilities & Consumables'!F3,'Utilities & Consumables'!H3)+SUMPRODUCT('Utilities & Consumables'!F7:F8,'Utilities & Consumables'!H7:H8)+SUMPRODUCT('Utilities & Consumables'!F10:F29,'Utilities & Consumables'!H10:H29) -> 0 | L14: Variable Opex | M14: =SUM(M5:M13) -> 30.8475724 | N14: €/tclk | O14: 22.68203853 | P14: €/tcem | Q14: =SUM(Q5:Q13) -> 41.47863648 | R14: €/tclk | S14: 30.49899741 | T14: €/tcem
B15: Interest_on_equity | C15: 0.08 | G15: CO2 emissions (total indirect) | H15: kgCO2/s | I15: =I13+I11+I9 -> 1.158135551 | J15: =J13+J11+J9 -> 0.08778819444 | L15: Labour | M15: =I54*1000000/(I4*365*$C$4) -> 8.714756372 | N15: €/tclk | O15: 6.407909097 | P15: €/tcem | Q15: =J54*1000000/(J4*365*$C$4) -> 11.09394793 | R15: €/tclk | S15: 8.157314655 | T15: €/tcem
B16: Discounted_cash_flow_rate | C16: =C14*C12+C15*C13 -> 0.08 | G16: CO2 emissions (total indirect) | H16: kgCO2/tclk | I16: =I14+I12+I10 -> 34.5578 | J16: =J14+J12+J10 -> 2.62 | L16: Insur. and loc. tax | M16: =I44*1000000/(I4*365*$C$4) -> 4.222102264 | N16: €/tclk | O16: 3.104486959 | P16: €/tcem | Q16: =J44*1000000/(J4*365*$C$4) -> 9.296440435 | R16: €/tclk | S16: 6.835617967 | T16: €/tcem
B17: DCF_and_inflation | C17: =C16-C10 -> 0.08 | G17: CO2 emissions (total: direct + indirect) | H17: kgCO2/s | I17: =I15+I7 -> 29.49672835 | J17: =J15+J7 -> 1.087788194 | L17: Maintenance cost | M17: =I46*1000000/(I4*365*$C$4) -> 5.27762783 | N17: €/tclk | O17: 3.880608699 | P17: €/tcem | Q17: =J46*1000000/(J4*365*$C$4) -> 11.62055054 | R17: €/tclk | S17: 8.544522458 | T17: €/tcem
G18: CO2 emissions (total: direct + indirect) | H18: kgCO2/tclk | I18: =I16+I8 -> 880.1578 | J18: =J16+J8 -> 32.46455959 | L18: Fixed Opex | M18: =SUM(M15:M17) -> 18.21448647 | N18: €/tclk | O18: 13.39300476 | P18: €/tcem | Q18: =SUM(Q15:Q17) -> 32.01093891 | R18: €/tclk | S18: 23.53745508 | T18: €/tcem
B19: =IF(AND('Economic balance'!L1<10^-5,'Economic balance'!Y1<10^-5),"OK","CONVERGENCE NOT ACHIEVED, PLEASE CLICK ON ''Calculate the Cost of Clinker (COC)''") -> OK | F19: Capex and Opex | L19: Cement kiln | M19: =M21*I26/I35 -> 20.56711203 | N19: €/tclk | O19: 15.12287649 | P19: €/tcem | Q19: =Q21*J26/J35 -> 21.11017266 | R19: €/tclk | S19: 15.52218578 | T19: €/tcem
F20: CAPEX | G20: Total direct costs including process contingency (TDC) | H20: M€ | I20: =145.5/567.3*580.2+1.01 -> 149.8185669 | J20: =145.5/567.3*580.2+1.01 -> 149.8185669 | L20: CO2 capture system | M20: =M21*I34/I35 -> 0 | N20: €/tclk | O20: 0 | P20: €/tcem | Q20: =Q21*J34/J35 -> 25.36288497 | R20: €/tclk | S20: 18.64918012 | T20: €/tcem
G21: Indirect costs | H21: (% of TDC) | I21: 0.14 | J21: 0.14 | L21: Capex | M21: =M22-M18-M14 -> 20.56711203 | N21: €/tclk | O21: 15.12287649 | P21: €/tcem | Q21: =Q22-Q18-Q14 -> 46.47305763 | R21: €/tclk | S21: 34.1713659 | T21: €/tcem
G22: Eng. Proc. Constr. (EPC) | H22: M€ | I22: =I20*(1+I21) -> 170.7931663 | J22: =J20*(1+J21) -> 170.7931663 | L22: Cost of Clinker/Cement (COC) | M22: ='Economic balance'!Breakeven_selling_price_base -> 69.62917089 | N22: €/tclk | O22: 51.19791978 | P22: €/tcem | Q22: =Breakeven_selling_price_capt -> 119.962633 | R22: €/tclk | S22: 88.20781839 | T22: €/tcem
G23: Owner's costs | H23: (% of TDC) | I23: 0.07 | J23: 0.07
G24: Project Conting. | H24: (% of TDC) | I24: 0.15 | J24: 0.15 | L24: Cost breakdown of CO2 avoided
G25: Owner's costs & Conting. | H25: M€ | I25: =I20*(I23+I24) -> 32.96008472 | J25: =J20*(J23+J24) -> 32.96008472 | L25: Fuel | M25: =(Q6-M6)/($I$8+$I$10+$I$12-$J$8-$J$10-$J$12)*10^3 -> 24.29534532 | N25: €/tCO2
G26: Total plant cost (TPC) | H26: M€ | I26: =I25+I22 -> 203.753251 | J26: =J22+J25 -> 203.753251 | L26: Electricity | M26: =(Q7-M7)/($I$8+$I$10+$I$12-$J$8-$J$10-$J$12)*10^3 -> -8.354897341 | N26: €/tCO2
G27: CO2 capture plant: | L27: Steam | M27: =(Q8-M8)/($I$8+$I$10+$I$12-$J$8-$J$10-$J$12)*10^3 -> 0 | N27: €/tCO2
G28: Total direct costs including process contingency (TDC) | H28: M€ | I28: 0 | J28: 180 | L28: Other variable costs | M28: =((Q13+Q5+Q12)-(M13+M5+M12))/($I$8+$I$10+$I$12-$J$8-$J$10-$J$12)*10^3 -> 4.600720891 | N28: €/tCO2
G29: Indirect costs | H29: (% of TDC) | I29: 0.14 | J29: 0.14 | L29: Variable Opex | M29: =SUM(M25:M28) -> 20.54116887 | N29: €/tCO2
G30: Eng. Proc. Constr. (EPC) | H30: M€ | I30: =I28*(1+I29) -> 0 | J30: =J28*(1+J29) -> 205.2 | L30: Fixed Opex | M30: =(Q18-M18)/($I$8+$I$10+$I$12-$J$8-$J$10-$J$12)*10^3 -> 16.27528897 | N30: €/tCO2
G31: Owner's costs | H31: (% of TDC) | I31: 0.07 | J31: 0.07 | L31: Capex | M31: =(Q21-M21)/($I$8+$I$10+$I$12-$J$8-$J$10-$J$12)*10^3 -> 30.56051926 | N31: €/tCO2
G32: Project Conting. | H32: (% of TDC) | I32: 0.15 | J32: 0.15 | L32: Cost of avoided CO2 (CAC) | M32: =SUM(M29:M31) -> 67.37697709 | N32: €/tCO2
G33: Owner's costs & Project Conting. | H33: M€ | I33: =I28*(I31+I32) -> 0 | J33: =J28*(J32+J31) -> 39.6
G34: Total plant cost (TPC) | H34: M€ | I34: =I33+I30 -> 0 | J34: =J33+J30 -> 244.8
G35: TPC cement kiln and capture system | H35: M€ | I35: =I34+I26 -> 203.753251 | J35: =J34+J26 -> 448.553251
F36: OPEX | G36: Carbon Tax | H36: €/tCO2 | I36: 8
G37: Cost of direct CO2 emissions | H37: €/tclk | I37: =I36*I8/1000 -> 6.7648 | J37: =I36*J8/1000 -> 0.2387564767
G38: Cost of CO2 emissions from electricity | H38: €/tclk | I38: =('Utilities & Consumables'!K19-'Utilities & Consumables'!C5)*'Utilities & Consumables'!E5 -> 0.2764624 | J38: =('Utilities & Consumables'!K19-'Utilities & Consumables'!C5)*'Utilities & Consumables'!F5 -> 0.02096
G39: Cost of CO2 emissions from steam | H39: €/tclk | I39: =('Utilities & Consumables'!K29-'Utilities & Consumables'!C6)*'Utilities & Consumables'!E6 -> 0 | J39: =('Utilities & Consumables'!K29-'Utilities & Consumables'!C6)*'Utilities & Consumables'!F6 -> 0
G40: Total consumables | H40: €/tclk | I40: ='Utilities & Consumables'!L3 -> 22.71831 | J40: ='Utilities & Consumables'!M3 -> 40.13092
G41: Other variable O&M | H41: €/tcem | I41: 0.8 | J41: 0.8
G42: Other variable O&M | H42: €/tclk | I42: =I41*I5 -> 1.088 | J42: =J41*J5 -> 1.088
G43: Insur. and loc. tax | H43: (% of TPC) | I43: 0.02 | J43: 0.02
G44: Insur. and loc. tax | H44: M€/year | I44: =I43*I35 -> 4.07506502 | J44: =J43*J35 -> 8.97106502
G45: Maintenance cost | H45: (% of TPC) | I45: 0.025 | J45: 0.025
G46: Maintenance cost | H46: M€/year | I46: =I45*I35 -> 5.093831274 | J46: =J45*J35 -> 11.21383127
G47: Number of persons | H47: persons | I47: 100 | J47: 120
G48: Cost of labour | H48: k€/year per person | I48: 60 | J48: 60
G49: Operating labour | H49: M€/year | I49: =I47*I48*10^3/10^6 -> 6 | J49: =J47*J48*10^3/10^6 -> 7.2
G50: Maintenance labour | H50: (% of Maintenance cost) | I50: 0.4 | J50: 0.4
G51: Maintenance labour | H51: M€/year | I51: =I50*I46 -> 2.03753251 | J51: =J50*J46 -> 4.48553251
G52: Administrative and support labour | H52: (% Oper. And maintenance labour cost) | I52: 0.3 | J52: 0.3
G53: Administrative and support labour | H53: M€/year | I53: =I52*(I51+I49) -> 2.411259753 | J53: =J52*(J51+J49) -> 3.505659753
G54: Labour cost | H54: M€/year | I54: =I53+I49 -> 8.411259753 | J54: =J53+J49 -> 10.70565975

Sheet Sensitivity
B2: Reference values:
B3: Fuel cost: | C3: 3 | D3: €/GJLHV
B4: Electricity price: | C4: 58.1 | D4: €/MWhe
B5: Carbon tax: | C5: 8 | D5: €/tCO2
P7: 0
B13: Variation of Fuel Cost
B14: Delta % | C14: -50 | D14: 0 | E14: 50
B15: Fuel Cost, €/GJLHV | C15: 1.5 | D15: 3 | E15: 4.5
B16: Cost of cement with CO2 capture, €/tcem | C16: 77.17840663 | D16: 88.20781839 | E16: 99.23723016
B17: Cost of cement in referance case, €/tcem | C17: 47.74019919 | D17: 51.19791978 | E17: 54.65564036
B18: Cost of CO2 avoided, €/tCO2 | C18: 55.22930443 | D18: 67.37697709 | E18: 79.52464975
B19: Variation of Electricity Price
B20: Delta % | C20: -30 | D20: 0 | E20: 30
B21: Electricity price, €/MWhe | C21: 40.67 | D21: 58.1 | E21: 75.53
B22: Cost of cement with CO2 capture, €/tcem | C22: 88.07965663 | D22: 88.20781839 | E22: 88.33598016
B23: Cost of cement in referance case, €/tcem | C23: 49.5074661 | D23: 51.19791978 | E23: 52.88837345
B24: Cost of CO2 avoided, €/tCO2 | C24: 69.8834463 | D24: 67.37697709 | E24: 64.87050789
B25: Variation of Carbon tax
B26: Delta, €/tCO2 | C26: -8 | D26: 7 | E26: 22
B27: Carbon tax, €/tCO2 | C27: 0 | D27: 15 | E27: 30
B28: Cost of cement with CO2 capture, €/tcem | C28: 88.01685039 | D28: 88.37491539 | E28: 88.73298038
B29: Cost of cement in referance case, €/tcem | C29: 46.02052095 | D29: 55.72814375 | E29: 65.43576654
B30: Variation of CAPEX
B31: min/base/max, % | C31: -15 | D31: 0 | E31: 30
B32: CAPEX cement kiln without capture, M€ | C32: 173.1902633 | D32: 203.753251 | E32: 264.8792263
B33: CAPEX cement kiln with capture, M€ | C33: 381.2702633 | D33: 448.553251 | E33: 583.1192263
B34: Cost of cement with CO2 capture, €/tcem | C34: 80.62109773 | D34: 88.20781839 | E34: 103.3812597
B35: Cost of cement in referance case, €/tcem | C35: 47.811873 | D35: 51.19791978 | E35: 57.97001333
B36: Cost of CO2 avoided, €/tCO2 | C36: 60.63760936 | D36: 67.37697709 | E36: 80.85571257

Sheet Economic balance
A1: Breakeven selling price | B1: €/tclk | C1: 69.62917089 | D1: 119.962633 | L1: =MIN(ABS(INDIRECT("L7"):INDIRECT(CONCATENATE("L",6+Operational_life+Construction_time-1)))) -> 3.685940442e-14 | Y1: =MIN(ABS(INDIRECT("Y7"):INDIRECT(CONCATENATE("Y",6+Operational_life+Construction_time-1)))) -> 2.131628207e-14
B2: €/tcement | C2: =Breakeven_selling_price_base/'Economic and CO2 Emission Data'!I5 -> 51.19791978 | D2: =Breakeven_selling_price_capt/'Economic and CO2 Emission Data'!J5 -> 88.20781839
A3: Cost of CO2 | B3: €/tCO2 | C3: =(Breakeven_selling_price_capt-Breakeven_selling_price_base)/('Economic and CO2 Emission Data'!I18-'Economic and CO2 Emission Data'!J18)*1000 -> 59.37697709
A5: Year | B5: % Constr. Cement plant | C5: % Constr. Capt. Plant | D5: Availability [h] | E5: Clinker production [t] | F5: Expense [M€] | G5: Revenues [M€] | H5: Deprec. [M€] | I5: Taxable [M€] | J5: Taxes [M€] | K5: Discount. CF [M€] | L5: Prog. DCF [M€] | N5: Year | O5: % Constr. Cement plant | P5: % Constr. Capt. Plant | Q5: Availability [h] | R5: Clinker production [t] | S5: Expense [M€] | T5: Revenues [M€] | U5: Deprec. [M€] | V5: Taxable [M€] | W5: Taxes [M€] | X5: Discount. CF [M€] | Y5: Prog. DCF [M€]
A6: -2 | C6: 0.4 | F6: =B6*TPC_cem_base+C6*TPC_capt_base -> 0 | I6: 0 | J6: 0 | K6: =(G6-J6-F6)*((1+Discounted_cash_flow_rate-Construction_inflat.)^(-A6)) -> 0 | L6: =K6 -> 0 | N6: -2 | P6: 0.4 | S6: =O6*TPC_cem+P6*TPC_capt -> 97.92 | V6: 0 | W6: 0 | X6: =(T6-W6-S6)*((1+Discounted_cash_flow_rate-Construction_inflat.)^(-N6)) -> -114.213888 | Y6: =X6 -> -114.213888
A7: -1 | B7: 0.5 | C7: 0.3 | F7: =B7*TPC_cem_base+C7*TPC_capt_base -> 101.8766255 | I7: 0 | J7: 0 | K7: =(G7-J7-F7)*((1+Discounted_cash_flow_rate-Construction_inflat.)^(-A7)) -> -110.0267555 | L7: =K7+L6 -> -110.0267555 | N7: -1 | O7: 0.5 | P7: 0.3 | S7: =O7*TPC_cem+P7*TPC_capt -> 175.3166255 | V7: 0 | W7: 0 | X7: =(T7-W7-S7)*((1+Discounted_cash_flow_rate-Construction_inflat.)^(-N7)) -> -189.3419555 | Y7: =X7+Y6 -> -303.5558435
A8: 0 | B8: 0.5 | C8: 0.3 | F8: =B8*TPC_cem_base+C8*TPC_capt_base -> 101.8766255 | I8: 0 | J8: 0 | K8: =(G8-J8-F8)*((1+Discounted_cash_flow_rate-Construction_inflat.)^(-A8)) -> -101.8766255 | L8: -211.903381 | N8: 0 | O8: 0.5 | P8: 0.3 | S8: =O8*TPC_cem+P8*TPC_capt -> 175.3166255 | V8: 0 | W8: 0 | X8: =(T8-W8-S8)*((1+Discounted_cash_flow_rate-Construction_inflat.)^(-N8)) -> -175.3166255 | Y8: -478.872469
A9: 1 | D9: =8760*Capacity_factor -> 8000 | E9: =D9/24*Clinker_production_ref -> 965174.4 | F9: =(Total_consumables_base+Other_variable_OeM_base+Carbon_Tax_base+Carbon_Tax_base_el+Carbon_Tax_base_steam)*E9/1000000+Insur_and_loc_tax_base+Maintenance_cost_base+Labour_cost_base -> 47.35344323 | G9: =Breakeven_selling_price_base*E9/1000000 -> 67.20429324 | H9: =IF(A9+1>Depreciation_time,0,(TPC_cem_base+TPC_capt_base)/Depreciation_time) -> 0 | I9: =G9-H9-F9 -> 19.85085001 | J9: =I9*Tax_rate -> 0 | K9: =(G9-J9-F9)*((1+DCF_and_inflation)^(-A9)) -> 18.38041668 | L9: -193.5229643 | N9: 1 | Q9: =8760*Capacity_factor -> 8000 | R9: =Q9/24*Clinker_production_ref -> 965174.4 | S9: =(Total_consumables_capt+Other_variable_OeM_capt+Carbon_Tax_capt+Carbon_Tax_capt_el+Carbon_Tax_capt_steam)*R9/1000000+Insur_and_loc_tax_capt+Maintenance_cost_capt+Labour_cost_capt -> 70.92467412 | T9: =Breakeven_selling_price_capt*R9/1000000 -> 115.7848623 | U9: =IF(N9+1>Depreciation_time,0,(TPC_cem+TPC_capt)/Depreciation_time) -> 0 | V9: =T9-U9-S9 -> 44.86018822 | W9: =V9*Tax_rate -> 0 | X9: =(T9-W9-S9)*((1+DCF_and_inflation)^(-N9)) -> 41.53721131 | Y9: -437.3352577
A10: 2 | D10: 8000 | E10: 965174.4 | F10: 47.35344323 | G10: 67.20429324 | H10: 0 | I10: 19.85085001 | J10: 0 | K10: 17.01890433 | L10: -176.50406 | N10: 2 | Q10: 8000 | R10: 965174.4 | S10: 70.92467412 | T10: 115.7848623 | U10: 0 | V10: 44.86018822 | W10: 0 | X10: 38.46038085 | Y10: -398.8748769
A11: 3 | D11: 8000 | E11: 965174.4 | F11: 47.35344323 | G11: 67.20429324 | H11: 0 | I11: 19.85085001 | J11: 0 | K11: 15.75824475 | L11: -160.7458153 | N11: 3 | Q11: 8000 | R11: 965174.4 | S11: 70.92467412 | T11: 115.7848623 | U11: 0 | V11: 44.86018822 | W11: 0 | X11: 35.61146375 | Y11: -363.2634131
A12: 4 | D12: 8000 | E12: 965174.4 | F12: 47.35344323 | G12: 67.20429324 | H12: 0 | I12: 19.85085001 | J12: 0 | K12: 14.59096736 | L12: -146.1548479 | N12: 4 | Q12: 8000 | R12: 965174.4 | S12: 70.92467412 | T12: 115.7848623 | U12: 0 | V12: 44.86018822 | W12: 0 | X12: 32.97357754 | Y12: -330.2898356
A13: 5 | D13: 8000 | E13: 965174.4 | F13: 47.35344323 | G13: 67.20429324 | H13: 0 | I13: 19.85085001 | J13: 0 | K13: 13.51015496 | L13: -132.6446929 | N13: 5 | Q13: 8000 | R13: 965174.4 | S13: 70.92467412 | T13: 115.7848623 | U13: 0 | V13: 44.86018822 | W13: 0 | X13: 30.53109032 | Y13: -299.7587452
A14: 6 | D14: 8000 | E14: 965174.4 | F14: 47.35344323 | G14: 67.20429324 | H14: 0 | I14: 19.85085001 | J14: 0 | K14: 12.50940274 | L14: -120.1352902 | N14: 6 | Q14: 8000 | R14: 965174.4 | S14: 70.92467412 | T14: 115.7848623 | U14: 0 | V14: 44.86018822 | W14: 0 | X14: 28.26952807 | Y14: -271.4892172
A15: 7 | D15: 8000 | E15: 965174.4 | F15: 47.35344323 | G15: 67.20429324 | H15: 0 | I15: 19.85085001 | J15: 0 | K15: 11.58278032 | L15: -108.5525099 | N15: 7 | Q15: 8000 | R15: 965174.4 | S15: 70.92467412 | T15: 115.7848623 | U15: 0 | V15: 44.86018822 | W15: 0 | X15: 26.17548896 | Y15: -245.3137282
A16: 8 | D16: 8000 | E16: 965174.4 | F16: 47.35344323 | G16: 67.20429324 | H16: 0 | I16: 19.85085001 | J16: 0 | K16: 10.72479659 | L16: -97.82771328 | N16: 8 | Q16: 8000 | R16: 965174.4 | S16: 70.92467412 | T16: 115.7848623 | U16: 0 | V16: 44.86018822 | W16: 0 | X16: 24.23656385 | Y16: -221.0771644
A17: 9 | D17: 8000 | E17: 965174.4 | F17: 47.35344323 | G17: 67.20429324 | H17: 0 | I17: 19.85085001 | J17: 0 | K17: 9.930367215 | L17: -87.89734607 | N17: 9 | Q17: 8000 | R17: 965174.4 | S17: 70.92467412 | T17: 115.7848623 | U17: 0 | V17: 44.86018822 | W17: 0 | X17: 22.44126282 | Y17: -198.6359016
A18: 10 | D18: 8000 | E18: 965174.4 | F18: 47.35344323 | G18: 67.20429324 | H18: 0 | I18: 19.85085001 | J18: 0 | K18: 9.194784458 | L18: -78.70256161 | N18: 10 | Q18: 8000 | R18: 965174.4 | S18: 70.92467412 | T18: 115.7848623 | U18: 0 | V18: 44.86018822 | W18: 0 | X18: 20.77894706 | Y18: -177.8569545
A19: 11 | D19: 8000 | E19: 965174.4 | F19: 47.35344323 | G19: 67.20429324 | H19: 0 | I19: 19.85085001 | J19: 0 | K19: 8.513689313 | L19: -70.18887229 | N19: 11 | Q19: 8000 | R19: 965174.4 | S19: 70.92467412 | T19: 115.7848623 | U19: 0 | V19: 44.86018822 | W19: 0 | X19: 19.23976579 | Y19: -158.6171887
A20: 12 | D20: 8000 | E20: 965174.4 | F20: 47.35344323 | G20: 67.20429324 | H20: 0 | I20: 19.85085001 | J20: 0 | K20: 7.88304566 | L20: -62.30582663 | N20: 12 | Q20: 8000 | R20: 965174.4 | S20: 70.92467412 | T20: 115.7848623 | U20: 0 | V20: 44.86018822 | W20: 0 | X20: 17.81459796 | Y20: -140.8025907
A21: 13 | D21: 8000 | E21: 965174.4 | F21: 47.35344323 | G21: 67.20429324 | H21: 0 | I21: 19.85085001 | J21: 0 | K21: 7.299116352 | L21: -55.00671028 | N21: 13 | Q21: 8000 | R21: 965174.4 | S21: 70.92467412 | T21: 115.7848623 | U21: 0 | V21: 44.86018822 | W21: 0 | X21: 16.49499811 | Y21: -124.3075926
A22: 14 | D22: 8000 | E22: 965174.4 | F22: 47.35344323 | G22: 67.20429324 | H22: 0 | I22: 19.85085001 | J22: 0 | K22: 6.758441067 | L22: -48.24826922 | N22: 14 | Q22: 8000 | R22: 965174.4 | S22: 70.92467412 | T22: 115.7848623 | U22: 0 | V22: 44.86018822 | W22: 0 | X22: 15.2731464 | Y22: -109.0344462
A23: 15 | D23: 8000 | E23: 965174.4 | F23: 47.35344323 | G23: 67.20429324 | H23: 0 | I23: 19.85085001 | J23: 0 | K23: 6.257815802 | L23: -41.99045341 | N23: 15 | Q23: 8000 | R23: 965174.4 | S23: 70.92467412 | T23: 115.7848623 | U23: 0 | V23: 44.86018822 | W23: 0 | X23: 14.14180222 | Y23: -94.89264402
A24: 16 | D24: 8000 | E24: 965174.4 | F24: 47.35344323 | G24: 67.20429324 | H24: 0 | I24: 19.85085001 | J24: 0 | K24: 5.794273891 | L24: -36.19617952 | N24: 16 | Q24: 8000 | R24: 965174.4 | S24: 70.92467412 | T24: 115.7848623 | U24: 0 | V24: 44.86018822 | W24: 0 | X24: 13.09426131 | Y24: -81.79838271
A25: 17 | D25: 8000 | E25: 965174.4 | F25: 47.35344323 | G25: 67.20429324 | H25: 0 | I25: 19.85085001 | J25: 0 | K25: 5.365068418 | L25: -30.8311111 | N25: 17 | Q25: 8000 | R25: 965174.4 | S25: 70.92467412 | T25: 115.7848623 | U25: 0 | V25: 44.86018822 | W25: 0 | X25: 12.12431603 | Y25: -69.67406667
A26: 18 | D26: 8000 | E26: 965174.4 | F26: 47.35344323 | G26: 67.20429324 | H26: 0 | I26: 19.85085001 | J26: 0 | K26: 4.967655942 | L26: -25.86345516 | N26: 18 | Q26: 8000 | R26: 965174.4 | S26: 70.92467412 | T26: 115.7848623 | U26: 0 | V26: 44.86018822 | W26: 0 | X26: 11.22621855 | Y26: -58.44784813
A27: 19 | D27: 8000 | E27: 965174.4 | F27: 47.35344323 | G27: 67.20429324 | H27: 0 | I27: 19.85085001 | J27: 0 | K27: 4.599681428 | L27: -21.26377373 | N27: 19 | Q27: 8000 | R27: 965174.4 | S27: 70.92467412 | T27: 115.7848623 | U27: 0 | V27: 44.86018822 | W27: 0 | X27: 10.3946468 | Y27: -48.05320132
A28: 20 | D28: 8000 | E28: 965174.4 | F28: 47.35344323 | G28: 67.20429324 | H28: 0 | I28: 19.85085001 | J28: 0 | K28: 4.258964285 | L28: -17.00480945 | N28: 20 | Q28: 8000 | R28: 965174.4 | S28: 70.92467412 | T28: 115.7848623 | U28: 0 | V28: 44.86018822 | W28: 0 | X28: 9.624672966 | Y28: -38.42852836
A29: 21 | D29: 8000 | E29: 965174.4 | F29: 47.35344323 | G29: 67.20429324 | H29: 0 | I29: 19.85085001 | J29: 0 | K29: 3.943485449 | L29: -13.061324 | N29: 21 | Q29: 8000 | R29: 965174.4 | S29: 70.92467412 | T29: 115.7848623 | U29: 0 | V29: 44.86018822 | W29: 0 | X29: 8.911734228 | Y29: -29.51679413
A30: 22 | D30: 8000 | E30: 965174.4 | F30: 47.35344323 | G30: 67.20429324 | H30: 0 | I30: 19.85085001 | J30: 0 | K30: 3.651375416 | L30: -9.409948584 | N30: 22 | Q30: 8000 | R30: 965174.4 | S30: 70.92467412 | T30: 115.7848623 | U30: 0 | V30: 44.86018822 | W30: 0 | X30: 8.251605767 | Y30: -21.26518836
A31: 23 | D31: 8000 | E31: 965174.4 | F31: 47.35344323 | G31: 67.20429324 | H31: 0 | I31: 19.85085001 | J31: 0 | K31: 3.380903163 | L31: -6.029045421 | N31: 23 | Q31: 8000 | R31: 965174.4 | S31: 70.92467412 | T31: 115.7848623 | U31: 0 | V31: 44.86018822 | W31: 0 | X31: 7.64037571 | Y31: -13.62481265
A32: 24 | D32: 8000 | E32: 965174.4 | F32: 47.35344323 | G32: 67.20429324 | H32: 0 | I32: 19.85085001 | J32: 0 | K32: 3.130465892 | L32: -2.898579529 | N32: 24 | Q32: 8000 | R32: 965174.4 | S32: 70.92467412 | T32: 115.7848623 | U32: 0 | V32: 44.86018822 | W32: 0 | X32: 7.074421954 | Y32: -6.550390698
A33: 25 | D33: 8000 | E33: 965174.4 | F33: 47.35344323 | G33: 67.20429324 | H33: 0 | I33: 19.85085001 | J33: 0 | K33: 2.898579529 | L33: -3.685940442e-14 | N33: 25 | Q33: 8000 | R33: 965174.4 | S33: 70.92467412 | T33: 115.7848623 | U33: 0 | V33: 44.86018822 | W33: 0 | X33: 6.550390698 | Y33: -2.131628207e-14
